Cogmind - Beta 12 @@@ ROGUE MODE // 2023.03.23 @ 09:30:37 Player: ZLD1 Result: Self-destructed Performance ------------- Evolutions (1) 500 Regions Visited (3) 600 Robots Destroyed (14) 70 Value Destroyed (287) 287 Prototype IDs (0) 0 Alien Tech Used (0) 0 Bonus (0) 0 TOTAL SCORE: 1457 Bonus ------- None Cogmind --------- Core Integrity 48/400 Matter 300/300 Energy 88/100 System Corruption 0% Temperature Cool (15) Movement Core (100) Ox1 Location -9/Storage Parts ------- > --- POWER (1) -------- (None) > --- PROPULSION (3) --- (None) > --- UTILITY (2) ------ Medium Storage Unit Weight Redist. System > --- WEAPON (3) ------- (None) > --- INVENTORY (10) --- Light Ion Engine Aluminum Leg Heat Sink Small Storage Unit Datajack Peak State ------------ > --- POWER ------------ Light Ion Engine > --- PROPULSION ------- Flight Unit Flight Unit Flight Unit > --- UTILITY ---------- Small Storage Unit Weight Redist. System > --- WEAPON ----------- Light Assault Rifle Light Assault Rifle > --- INVENTORY -------- Ion Engine Light Ion Engine Aluminum Leg Aluminum Leg Flight Unit EM Pulse Gun [Rating: 9] Favorites ----------- Power Light Ion Engine Engine Light Ion Engine Propulsion Flight Unit Leg Aluminum Leg Flight Unit Flight Unit Utility Small Storage Unit Device Weight Redist. System Storage Small Storage Unit Weapon Light Assault Rifle Energy Gun EM Pulse Gun Ballistic Gun Light Assault Rifle Build | -11 -10 -9 -9 ------- Run | Jun Mat Mat Sto Slots Evolved 2 | . . 2 . Power . | . . . . Propulsion 1 | . . 1 . Utility . | . . . . Weapon 1 | . . 1 . Parts Attached 25 | 6 6 9 4 Power 4 | 1 1 1 1 Engine 4 | 1 1 1 1 Core . | . . . . Reactor . | . . . . Propulsion 13 | 2 4 6 1 Treads . | . . . . Leg 5 | 2 2 . 1 Wheel . | . . . . Hover . | . . . . Flight 8 | . 2 6 . Utility 3 | 1 . 2 . Device 1 | . . 1 . Storage 2 | 1 . 1 . Processor . | . . . . Hackware . | . . . . Protection . | . . . . Artifact . | . . . . Weapon 5 | 2 1 . 2 Energy Gun 1 | . . . 1 Energy Cannon . | . . . . Ballistic Gun 4 | 2 1 . 1 Ballistic Cannon . | . . . . Launcher . | . . . . Special Weapon . | . . . . Impact Weapon . | . . . . Slashing Weapon . | . . . . Piercing Weapon . | . . . . Special Melee Weapon . | . . . . Unidentified Prototypes . | . . . . Parts Lost 11 | . . 1 10 Power 2 | . . . 2 Propulsion 5 | . . 1 4 Utility . | . . . . Weapon 4 | . . . 4 Highest Loss Streak 10 | . . 1 10 To Critical Strikes . | . . . . Average Slot Usage (%) 80 | . 82 83 73 Engine 11 | . 14 9 8 Leg 11 | . 25 . 5 Flight 16 | . . 30 22 Device 6 | . . 10 11 Storage 12 | . 14 11 11 Ballistic Gun 22 | . 27 22 14 Naked Turns . | . . . . Heaviest Build 16 | 12 12 15 16 Greatest Support 20 | 20 20 18 18 Greatest Overweight (x) 1 | . 1 1 1 Average Overweight (x) . | . . . . Largest Inventory Capacity 10 | 8 8 10 10 Average Capacity 8 | 6 8 8 10 Most Carried 9 | 4 8 9 8 Average Carried 5 | 1 4 7 6 Final Capacity 10 | 8 8 10 10 Final Carried 8 | 1 7 8 5 Class Distribution -------------------- 58% | Mutant 41% | Scavenger-Mutant Dominant Class ---------------- Mutant | -10/Materials Scavenger-Mutant | -9/Materials Scavenger-Mutant | -9/Storage Resources | -11 -10 -9 -9 ----------- Run | Jun Mat Mat Sto Matter Collected 494 | 229 93 67 105 Remotely . | . . . . Salvage Created 519 | . 109 141 269 Parts 37 | . 12 11 14 Haulers Intercepted . | . . . . Recyclers Shooed 1 | . 1 . . Parts Field Recycled . | . . . . Retrieved Matter . | . . . . Parts Self-Destructed . | . . . . Prevented . | . . . . Kills | -11 -10 -9 -9 ------- Run | Jun Mat Mat Sto Combat Hostiles Destroyed 11 | . 3 5 3 Guns 10 | . 3 5 2 AOE 1 | . . . 1 Classes Destroyed 5 | . 2 2 1 Worker 1 | . . . 1 Recycler 2 | . 1 . 1 Swarmer 6 | . 3 3 . Grunt 1 | . . 1 . Sentry 4 | . . 1 3 Best Kill Streak 4 | . 4 4 4 Combat Bots Only 4 | . 3 4 2 Max Kills in Single Turn 3 | . 1 1 3 Gunslinging . | . . . . Exploded 1 | . . . 1 Melee . | . . . . Uniques/NPCs Destroyed . | . . . . Combat | -11 -10 -9 -9 -------- Run | Jun Mat Mat Sto Damage Taken 1248 | . 111 213 924 Core 362 | . 10 46 306 Absorbed by Shields . | . . . . Core Remaining (%) 98 | 100 96 . . Volleys Fired 51 | . 10 15 26 Largest 2 | . 2 2 2 Hottest 40 | . 40 40 40 Shots Fired 81 | . 20 30 31 Gun 81 | . 20 30 31 Cannon . | . . . . Launcher . | . . . . Special . | . . . . Kinetic 75 | . 20 30 25 Thermal . | . . . . Explosive . | . . . . Electromagnetic 6 | . . . 6 Robot Hit Streak 15 | . 6 5 15 Robot Miss Streak 3 | . 3 3 2 Penetration Max . | . . . . Secondary Targets . | . . . . Shots Hit Robots 60 | . 12 20 28 Core Hits 26 | . 6 10 10 Critical Kills . | . . . . Critical Parts Destroyed . | . . . . Critical Strikes 1 | . . 1 . Destroy 1 | . . 1 . Melee Attacks . | . . . . Impact . | . . . . Slashing . | . . . . Piercing . | . . . . Sneak Attacks . | . . . . Combat Hostiles . | . . . . Follow-up Attacks . | . . . . Damage Inflicted 731 | . 96 160 475 Guns 541 | . 96 160 285 Cannons . | . . . . Explosions 190 | . . . 190 Melee . | . . . . Ramming . | . . . . Kinetic 476 | . 96 160 220 Thermal 190 | . . . 190 Explosive . | . . . . Electromagnetic 65 | . . . 65 Impact . | . . . . Slashing . | . . . . Piercing . | . . . . Highest Corruption . | . . . . Average Corruption . | . . . . Corruption Purged . | . . . . Corruption Blocked . | . . . . Overload Shots . | . . . . Overflow Damage 45 | . . . 45 Projectiles . | . . . . Explosions 45 | . . . 45 Melee . | . . . . Knockbacks . | . . . . Impact . | . . . . Kinetic . | . . . . Secondary . | . . . . Self-Inflicted Damage 49 | . . . 49 Shots 1 | . . . 1 Rammed . | . . . . Targets Rammed . | . . . . Kicked . | . . . . Crushed . | . . . . Highest Temperature 38 | . . 8 38 Average Temperature 10 | . . 7 11 Received Heat Transfer 432 | . . 48 384 Siege Activations . | . . . . Robots Corrupted . | . . . . Combat Hostiles . | . . . . Parts Fried . | . . . . Impact Corruptions . | . . . . Robots Melted . | . . . . Combat Hostiles . | . . . . Parts Melted . | . . . . Heat Transferred 250 | . . . 250 Parts Sabotaged . | . . . . Parts Stolen . | . . . . Parts Stripped . | . . . . Power Chain Reactions 1 | . . . 1 Missiles Intercepted . | . . . . Alert | -11 -10 -9 -9 ------- Run | Jun Mat Mat Sto Peak Influence 181 | . 90 162 181 Initial 68 | . . 37 68 Average 84 | . 64 111 132 Maximum Alert Level . | . . . . Low Security (%) 100 | 100 100 100 100 Level 1 . | . . . . Level 2 . | . . . . Level 3 . | . . . . Level 4 . | . . . . Level 5 . | . . . . High Security . | . . . . Max Security . | . . . . Squads Dispatched 1 | . 1 . . Investigation . | . . . . Extermination . | . . . . Reinforcement 1 | . 1 . . Assault . | . . . . Garrison . | . . . . Intercept . | . . . . Searches Triggered . | . . . . Construction Impeded . | . . . . Haulers Reinforced . | . . . . Active Scanning Responses . | . . . . Cargo Convoy Interrupts . | . . . . Stealth | -11 -10 -9 -9 --------- Run | Jun Mat Mat Sto Distress Signals 1 | . 1 . . Communications Jammed . | . . . . Distress Signals . | . . . . Times Spotted 18 | . 5 5 8 Peak Tracking Total 6 | . 4 4 6 Tactical Retreats . | . . . . Traps | -11 -10 -9 -9 ------- Run | Jun Mat Mat Sto Traps Triggered . | . . . . Indirectly . | . . . . Trap Hack Attempts . | . . . . Triggered . | . . . . Disarmed . | . . . . Reprogrammed . | . . . . Reused . | . . . . Traps Extracted . | . . . . Installed . | . . . . Triggered . | . . . . Machines | -11 -10 -9 -9 ---------- Run | Jun Mat Mat Sto Machines Disabled . | . . . . Max in Single Turn . | . . . . Machines Repaired . | . . . . Machines Sabotaged . | . . . . Overloaded Fab Kills . | . . . . Hacking | -11 -10 -9 -9 --------- Run | Jun Mat Mat Sto Machines Accessed . | . . . . Terminals . | . . . . Fabricators . | . . . . Repair Stations . | . . . . Recycling Units . | . . . . Scanalyzers . | . . . . Garrison Access . | . . . . Total Hacks . | . . . . Successful . | . . . . Failed . | . . . . Catastrophic . | . . . . Database Lockouts . | . . . . Manual . | . . . . Terminals . | . . . . Fabricators . | . . . . Repair Stations . | . . . . Recycling Units . | . . . . Scanalyzers . | . . . . Garrison Access . | . . . . Terminal Hacks . | . . . . Fabricator Hacks . | . . . . Repair Station Hacks . | . . . . Recycling Unit Hacks . | . . . . Scanalyzer . | . . . . Garrison Access Hacks . | . . . . Unauthorized Hacks . | . . . . Terminals . | . . . . Fabricators . | . . . . Repair Stations . | . . . . Recycling Units . | . . . . Scanalyzers . | . . . . Garrison Access . | . . . . Data Cores Recovered . | . . . . Used . | . . . . Hacking Detections . | . . . . Full Trace Events . | . . . . Feedback Events . | . . . . Feedback Blocked . | . . . . Robot Schematics Acquired . | . . . . Robots Built . | . . . . Authchips . | . . . . Time . | . . . . Total Robot Build Rating . | . . . . Part Schematics Acquired . | . . . . Parts Built . | . . . . Authchips . | . . . . Time . | . . . . Total Part Build Rating . | . . . . Parts Repaired . | . . . . Time . | . . . . Parts Recycled . | . . . . Recycled Matter . | . . . . Retrieved Matter . | . . . . Retrieved Components . | . . . . Parts Scanalyzed . | . . . . Part Schematics Acquired . | . . . . Parts Damaged . | . . . . Bothacking | -11 -10 -9 -9 ------------ Run | Jun Mat Mat Sto Used RIF Installer . | . . . . Robots Hacked . | . . . . Non-combat . | . . . . Combat . | . . . . Robot Hacks Applied . | . . . . Relay Couplers Released . | . . . . Fabnet Peak Effective % . | . . . . Robots Rewired . | . . . . Allies Hacked . | . . . . Hacks Repelled . | . . . . Allies | -11 -10 -9 -9 -------- Run | Jun Mat Mat Sto Total Allies . | . . . . Largest Group . | . . . . Highest-Rated Group . | . . . . Highest-Rated Ally . | . . . . Total Orders . | . . . . Ally Attacks . | . . . . Total Damage . | . . . . Kills . | . . . . Allies Corrupted . | . . . . Allies Melted . | . . . . Intel | -11 -10 -9 -9 ------- Run | Jun Mat Mat Sto Robot Analysis Total . | . . . . Derelict Logs Recovered . | . . . . Drone Launches . | . . . . Drone Recoveries . | . . . . Exploration | -11 -10 -9 -9 ------------- Run | Jun Mat Mat Sto Turns Passed 478 | 65 162 150 101 Spaces Moved 382 | 48 98 135 101 Core 10 | 7 . . 3 Treads . | . . . . Legs 143 | 41 96 . 6 Wheels . | . . . . Hover . | . . . . Flight 229 | . 2 135 92 Fastest Speed 34 | 50 117 34 34 Average Speed 67 | 109 119 35 41 Slowest Speed 120 | 120 120 117 120 Overloaded Moves . | . . . . Propulsion Burnouts . | . . . . Robots Hopped . | . . . . Cave-ins Triggered . | . . . . Exploration Rate (%) 16 | 3 22 17 23 Regions Visited 3 Branch Regions 1 Pre-discovered Areas . | . . . . Known Exits Taken . | . . . . Unknown Exits Taken 3 | 1 1 1 . Scrap Searched . | . . . . Spaces Dug . | . . . . Terrain Destroyed 2 | . . . 2 Melee . | . . . . Projectile . | . . . . AOE 2 | . . . 2 Terrain Rammed . | . . . . Walls Destroyed . | . . . . Machines Disabled . | . . . . Actions | -11 -10 -9 -9 --------- Run | Jun Mat Mat Sto Total 531 | 60 126 212 133 Wait 45 | . . 44 1 Move 379 | 47 97 134 101 Hop . | . . . . Pick Up 24 | 7 9 7 1 Fast Attach 1 | . 1 . . Attach 18 | 6 2 6 4 Detach . | . . . . Swap 6 | . 3 3 . Drop 7 | . 4 3 . Fire 51 | . 10 15 26 Melee . | . . . . Ram . | . . . . Kick . | . . . . Crush . | . . . . Escape Stasis . | . . . . Rewire . | . . . . Trap . | . . . . Miscellaneous . | . . . . Route ------- -11/Junkyard -10/Materials -9/Materials -9/Storage History --------- Turn | Location | Event 4 | -11/Junkyard | Discovered new exit (range 15) 66 | -11/Junkyard | Entered Materials 217 | -10/Materials | Discovered new exit (range 10) 228 | -10/Materials | Entered another Materials area 228 | -9/Materials | Evolved 2 slots: Propulsion x1, Weapon x1 331 | -9/Materials | Discovered new exit (range 16) 378 | -9/Materials | Entered Storage 458 | -9/Storage | Core integrity fell below 50% 471 | -9/Storage | Core integrity fell below 20% 479 | -9/Storage | Self-destructed Last Messages --------------- 00457_ Ion Engine destroyed. 00458_ Critical hit (Burn: +37). 00460_ Aluminum Leg destroyed. 00460_ Critical hit (Burn: +37). 00461_ Acquired 16 matter. 00463_ Critical hit (Burn: +37). 00463_ Acquired Hvy. Assault Rifle. 00465_ Y-45 Defender destroyed. 00466_ Acquired 13 matter. 00468_ Acquired 3 matter. 00470_ Critical hit (Burn: +37). 00472_ Acquired 3 matter. 00474_ U-05 Engineer lays Concrete. 00475_ Flight Unit destroyed. 00476_ Acquired 3 matter. 00476_ U-05 Engineer lays Concrete. 00478_ Acquired 3 matter. 00478_ U-05 Engineer lays Concrete. 00479_ Hvy. Assault Rifle destroyed. 00479_ U-05 Engineer lays Concrete. Map ----- +----------------------------------------------------+ | | | | | ????????????????????????????????????? | | ????????????????????????????????????? | | ????????????????????????????????????? | | ????????????????????????????????????? | | ????????????????????????????????????? | | ????????????????????????????????????? | | ????????????????????????????????????? | | ????????????????????????????????????? | | ????????????????????????????????????? | | ????????????????????????????????????? | | ????????????????????????????????????? | | ????????????????????????????????????? | | ????????????????????????????????????? | | ????????????????????????????????????? | | ????????????????????????????????????? | | ????????????????????????????????????? | | ????????????????????????????????????? | | ??????????????????#?????????????????? | | ??????????????????# ????????????????? | | ?????????????????## ????????????##?? | | ????????? ##### ########### ### | | ????????? % =# "T" # | | ?????????? T !=!# # | | ????????????????## ###@u# # | | ?????????????????#??????#=g![ # | | ????????????????????????#*%;[ # | | ????????????????????????#=Y; """ # | | ????????????????????????# %# """ # | | ????????????????????????# =# """ # | | ????????????????????????# # ? | | ????????????????????????# #########? | | ????????????????????????# #????????? | | ????????????????????????# #????????? | | ????????????????????????# #????????? | | ????????????????????????# #????????? | | ???????### #############w ######???? | | #???? | | #???? | | #???? | | ?##+###################/##### #???? | | ?????????????????# # #???? | | ?????????????????## # #???? | | ???????????????#""" # #???? | | ???????????????#"R # #???? | | ???????????????#""" """ """ # #???? | | ???????????????#""" """ """ # #???? | | ???????????????#### """ """ # #???? | | ??????????????????# # #???? | +----------------------------------------------------+ Best States ------------- Heat Dissipation 28 Energy Generation 10 Energy Capacity 250 Matter Stores 297 Matter Capacity 300 Sight Range 16 Terrain Scan Density 10 Additional Mass Support 6 Evasion (%) 63 Item Schematics ----------------- None Robot Schematics ------------------ None Fabricated ------------ Nothing Alien Tech Used ----------------- None Achievements -------------- None Challenges ------------ None Game ------ Seed CatalystCoolantInterpreter Manual? 0 Play Time 00:10:51 Cumulative 14.6 hours Start 2023.03.23 @ 09:14:14 End 2023.03.23 @ 09:30:37 Sessions 1 Manual Loads 0 Difficulty Rogue Special Mode None Game No. 33 Rogue 33 Adventurer 0 Explorer 0 Win Type - Total 0 Types 0/0/0/0/0/0/0/0/0 Lore% 17 Gallery% 23 Achievement% 17 Wizard Run 0 Options --------- ASCII 0 Keyboard 0 Movement Mouse Keybinds 0 Fullscreen 1 Font 24/Smallcaps Map View 64x52 Tactical HUD 1 Map Filters NONE Filters NONE Steam 1 RUN: 5b707222-18f7-4394-bcd3-9afc37779639